[Event "Titled Tuesday Blitz February 21 Early 2023"]
[White "Principe, Gerson"]
[Black "Fajdetic, Hrvoje"]
[WhiteFideId "3804550"]
[BlackFideId "14501945"]
[WhiteElo "2226"]
[BlackElo "2151"]
[Result "1-0"]
[Round "03"]
[TimeControl "180+2"]
[Date "2023.02.21"]
[WhiteClock "0:00:05"]
[BlackClock "0:00:01"]

1. d4 {[%clk 0:02:55]}  e6 {[%clk 0:02:59]} 2. c4 {[%clk 0:02:54]}  f5 {[%clk 0:03:00]} 3. g3 {[%clk 0:02:42]}  Nf6 {[%clk 0:02:59]} 4. Bg2 {[%clk 0:02:43]}  Be7 {[%clk 0:02:59]} 5. Nc3 {[%clk 0:02:42]}  O-O {[%clk 0:02:59]} 6. Bg5 {[%clk 0:02:41]}  d6 {[%clk 0:02:59]} 7. e3 {[%clk 0:02:38]}  Qe8 {[%clk 0:02:55]} 8. Nge2 {[%clk 0:02:35]}  Nbd7 {[%clk 0:02:48]} 9. Qc2 {[%clk 0:02:29]}  h6 {[%clk 0:02:47]} 10. Bxf6 {[%clk 0:02:27]}  Nxf6 {[%clk 0:02:48]} 11. h4 {[%clk 0:02:25]}  e5 {[%clk 0:02:43]} 12. Nd5 {[%clk 0:02:22]}  Bd8 {[%clk 0:02:40]} 13. Nxf6+ {[%clk 0:02:12]}  Bxf6 {[%clk 0:02:37]} 14. O-O-O {[%clk 0:02:12]}  a5 {[%clk 0:02:01]} 15. Bh3 {[%clk 0:01:50]}  Qh5 {[%clk 0:01:37]} 16. Bg2 {[%clk 0:01:14]}  a4 {[%clk 0:01:25]} 17. Kb1 {[%clk 0:00:28]}  f4 {[%clk 0:01:12]} 18. gxf4 {[%clk 0:00:23]}  Bf5 {[%clk 0:01:09]} 19. e4 {[%clk 0:00:23]}  Bg4 {[%clk 0:01:09]} 20. Ng3 {[%clk 0:00:21]}  Bxd1 {[%clk 0:01:05]} 21. Rxd1 {[%clk 0:00:17]}  Qxh4 {[%clk 0:00:56]} 22. fxe5 {[%clk 0:00:17]}  dxe5 {[%clk 0:00:54]} 23. d5 {[%clk 0:00:17]}  Qg5 {[%clk 0:00:35]} 24. Bh3 {[%clk 0:00:16]}  Rfd8 {[%clk 0:00:31]} 25. Be6+ {[%clk 0:00:16]}  Kh8 {[%clk 0:00:30]} 26. Nf5 {[%clk 0:00:15]}  c6 {[%clk 0:00:27]} 27. Qe2 {[%clk 0:00:14]}  b5 {[%clk 0:00:25]} 28. d6 {[%clk 0:00:07]}  bxc4 {[%clk 0:00:24]} 29. d7 {[%clk 0:00:07]}  Rab8 {[%clk 0:00:23]} 30. Qxc4 {[%clk 0:00:07]}  a3 {[%clk 0:00:18]} 31. b3 {[%clk 0:00:07]}  Qf4 {[%clk 0:00:16]} 32. Qc2 {[%clk 0:00:05]}  Rb4 {[%clk 0:00:13]} 33. Nd6 {[%clk 0:00:05]}  Rbb8 {[%clk 0:00:09]} 34. Nf7+ {[%clk 0:00:05]}  Kh7 {[%clk 0:00:09]} 35. Nxd8 {[%clk 0:00:06]}  Bxd8 {[%clk 0:00:07]} 36. Bf5+ {[%clk 0:00:05]}  Kh8 {[%clk 0:00:07]} 37. Be6 {[%clk 0:00:05]}  Bf6 {[%clk 0:00:06]} 38. Bf5 {[%clk 0:00:05]}  Bh4 {[%clk 0:00:05]} 39. Qd2 {[%clk 0:00:05]}  Qg5 {[%clk 0:00:03]} 40. Qxg5 {[%clk 0:00:04]}  Bxg5 {[%clk 0:00:04]} 41. Kc2 {[%clk 0:00:04]}  Kg8 {[%clk 0:00:04]} 42. Kd3 {[%clk 0:00:05]}  Kf7 {[%clk 0:00:04]} 43. Kc4 {[%clk 0:00:05]}  g6 {[%clk 0:00:04]} 44. Bh3 {[%clk 0:00:05]}  h5 {[%clk 0:00:04]} 45. Kc5 {[%clk 0:00:05]}  Be7+ {[%clk 0:00:03]} 46. Kxc6 {[%clk 0:00:06]}  Rd8 {[%clk 0:00:03]} 47. Kc7 {[%clk 0:00:06]}  g5 {[%clk 0:00:03]} 48. Bf5 {[%clk 0:00:06]}  g4 {[%clk 0:00:04]} 49. Rh1 {[%clk 0:00:05]}  Rh8 {[%clk 0:00:01]} 50. Bxg4 {[%clk 0:00:06]}  hxg4 {[%clk 0:00:01]} 51. Rxh8 {[%clk 0:00:05]} 1-0


[Site "https://www.chess.com"]

[Event "Titled Tuesday Blitz February 21 Early 2023"]
[White "mohsengabr2002"]
[Black "Goldin, Alexander"]
[BlackFideId "2019540"]
[WhiteElo "2324"]
[BlackElo "2542"]
[Result "0-1"]
[Round "03"]
[TimeControl "180+2"]
[Date "2023.02.21"]
[WhiteClock "0:02:38"]
[BlackClock "0:02:30"]

1. b3 {[%clk 0:03:00]}  d5 {[%clk 0:02:58]} 2. e3 {[%clk 0:03:00]}  c6 {[%clk 0:02:57]} 3. Bb2 {[%clk 0:03:00]}  Bf5 {[%clk 0:02:57]} 4. Nf3 {[%clk 0:02:59]}  h6 {[%clk 0:02:57]} 5. Be2 {[%clk 0:02:56]}  e6 {[%clk 0:02:57]} 6. Ne5 {[%clk 0:02:56]}  Nd7 {[%clk 0:02:57]} 7. Nxd7 {[%clk 0:02:55]}  Qxd7 {[%clk 0:02:57]} 8. g4 {[%clk 0:02:54]}  Be4 {[%clk 0:02:56]} 9. f3 {[%clk 0:02:54]}  Bg6 {[%clk 0:02:52]} 10. h4 {[%clk 0:02:54]}  h5 {[%clk 0:02:52]} 11. g5 {[%clk 0:02:54]}  Ne7 {[%clk 0:02:52]} 12. Nc3 {[%clk 0:02:48]}  Nf5 {[%clk 0:02:52]} 13. Kf2 {[%clk 0:02:46]}  Bd6 {[%clk 0:02:52]} 14. Rh3 {[%clk 0:02:44]}  O-O-O {[%clk 0:02:36]} 15. Qg1 {[%clk 0:02:43]}  e5 {[%clk 0:02:35]} 16. e4 {[%clk 0:02:40]}  Nd4 {[%clk 0:02:32]} 17. Bd3 {[%clk 0:02:38]}  Qxh3 {[%clk 0:02:30]} 0-1


[Site "https://www.chess.com"]

[Event "Titled Tuesday Blitz February 21 Early 2023"]
[White "Guzman Moneo, Alberto"]
[Black "Deng, Henry"]
[WhiteFideId "2209616"]
[BlackFideId "30965454"]
[WhiteElo "2170"]
[BlackElo "2168"]
[Result "1-0"]
[Round "03"]
[TimeControl "180+2"]
[Date "2023.02.21"]
[WhiteClock "0:01:05"]
[BlackClock "0:01:38"]

1. e4 {[%clk 0:02:59]}  c5 {[%clk 0:02:58]} 2. Nc3 {[%clk 0:02:59]}  e6 {[%clk 0:02:59]} 3. Nge2 {[%clk 0:02:58]}  Nc6 {[%clk 0:02:57]} 4. g3 {[%clk 0:02:59]}  g6 {[%clk 0:02:55]} 5. d4 {[%clk 0:02:58]}  cxd4 {[%clk 0:02:52]} 6. Nxd4 {[%clk 0:02:59]}  Bg7 {[%clk 0:02:52]} 7. Ndb5 {[%clk 0:02:55]}  Nge7 {[%clk 0:02:51]} 8. Nd6+ {[%clk 0:02:51]}  Kf8 {[%clk 0:02:51]} 9. Bg2 {[%clk 0:02:44]}  b6 {[%clk 0:02:46]} 10. O-O {[%clk 0:02:39]}  Ba6 {[%clk 0:02:46]} 11. Re1 {[%clk 0:02:39]}  Nd4 {[%clk 0:02:44]} 12. Be3 {[%clk 0:02:34]}  Nec6 {[%clk 0:02:44]} 13. f4 {[%clk 0:02:26]}  e5 {[%clk 0:02:41]} 14. a4 {[%clk 0:02:06]}  Qe7 {[%clk 0:02:22]} 15. Ndb5 {[%clk 0:01:55]}  Bb7 {[%clk 0:02:15]} 16. Nd5 {[%clk 0:01:53]}  Qd8 {[%clk 0:02:06]} 17. Rf1 {[%clk 0:01:44]}  Kg8 {[%clk 0:02:01]} 18. Nd6 {[%clk 0:01:38]}  Ba6 {[%clk 0:01:58]} 19. Rf2 {[%clk 0:01:37]}  Bf8 {[%clk 0:01:55]} 20. fxe5 {[%clk 0:01:29]}  Nxe5 {[%clk 0:01:53]} 21. Nf6+ {[%clk 0:01:10]}  Kg7 {[%clk 0:01:38]} 22. Nde8+ {[%clk 0:01:05]} 1-0


[Site "https://www.chess.com"]

[Event "Titled Tuesday Blitz February 21 Early 2023"]
[White "Thiel, Thomas"]
[Black "Ilkhomi, Jaloliddin"]
[WhiteFideId "4615964"]
[BlackFideId "14700948"]
[WhiteElo "2234"]
[BlackElo "1997"]
[Result "0-1"]
[Round "03"]
[TimeControl "180+2"]
[Date "2023.02.21"]
[WhiteClock "0:00:19"]
[BlackClock "0:00:39"]

1. e4 {[%clk 0:03:00]}  e6 {[%clk 0:02:59]} 2. d4 {[%clk 0:02:59]}  d5 {[%clk 0:02:59]} 3. Nc3 {[%clk 0:02:59]}  Bb4 {[%clk 0:02:58]} 4. e5 {[%clk 0:02:58]}  c5 {[%clk 0:02:58]} 5. a3 {[%clk 0:02:56]}  Bxc3+ {[%clk 0:02:59]} 6. bxc3 {[%clk 0:02:56]}  Qa5 {[%clk 0:03:00]} 7. Bd2 {[%clk 0:02:54]}  Qa4 {[%clk 0:03:00]} 8. Nf3 {[%clk 0:02:48]}  c4 {[%clk 0:03:00]} 9. Be2 {[%clk 0:02:46]}  Nc6 {[%clk 0:03:00]} 10. O-O {[%clk 0:02:45]}  Nge7 {[%clk 0:02:57]} 11. h3 {[%clk 0:02:43]}  Bd7 {[%clk 0:02:55]} 12. Nh2 {[%clk 0:02:42]}  O-O-O {[%clk 0:02:54]} 13. Re1 {[%clk 0:02:42]}  Rdf8 {[%clk 0:02:50]} 14. Nf1 {[%clk 0:02:41]}  f6 {[%clk 0:02:47]} 15. exf6 {[%clk 0:02:38]}  gxf6 {[%clk 0:02:47]} 16. Ne3 {[%clk 0:02:33]}  Rhg8 {[%clk 0:02:36]} 17. Qc1 {[%clk 0:02:32]}  e5 {[%clk 0:02:34]} 18. Qb2 {[%clk 0:02:18]}  Bxh3 {[%clk 0:02:32]} 19. Bf1 {[%clk 0:02:11]}  Rg6 {[%clk 0:02:16]} 20. Nd1 {[%clk 0:01:40]}  Rfg8 {[%clk 0:02:04]} 21. g3 {[%clk 0:01:40]}  Bxf1 {[%clk 0:02:01]} 22. Kxf1 {[%clk 0:01:40]}  Nf5 {[%clk 0:02:01]} 23. Ne3 {[%clk 0:01:35]}  Nxg3+ {[%clk 0:01:41]} 24. fxg3 {[%clk 0:01:33]}  Rxg3 {[%clk 0:01:42]} 25. Nxd5 {[%clk 0:01:24]}  exd4 {[%clk 0:01:30]} 26. Rab1 {[%clk 0:00:54]}  R3g7 {[%clk 0:00:56]} 27. Qb5 {[%clk 0:00:48]}  Qxc2 {[%clk 0:00:48]} 28. Re2 {[%clk 0:00:19]}  Rg1+ {[%clk 0:00:47]} 29. Kf2 {[%clk 0:00:19]}  R8g2+ {[%clk 0:00:39]} 0-1


[Site "https://www.chess.com"]

[Event "Titled Tuesday Blitz February 21 Early 2023"]
[White "Petrovic, Aleksa"]
[Black "Decoster, Frederic"]
[WhiteFideId "967629"]
[BlackFideId "204269"]
[WhiteElo "2332"]
[BlackElo "2301"]
[Result "1-0"]
[Round "03"]
[TimeControl "180+2"]
[Date "2023.02.21"]
[WhiteClock "0:00:03"]
[BlackClock "0:00:01"]

1. d4 {[%clk 0:03:00]}  Nf6 {[%clk 0:03:00]} 2. c4 {[%clk 0:03:00]}  g6 {[%clk 0:03:00]} 3. f3 {[%clk 0:03:00]}  Bg7 {[%clk 0:03:00]} 4. e4 {[%clk 0:03:00]}  O-O {[%clk 0:02:59]} 5. Nc3 {[%clk 0:03:00]}  d6 {[%clk 0:02:59]} 6. Nge2 {[%clk 0:03:00]}  a6 {[%clk 0:03:00]} 7. Be3 {[%clk 0:03:00]}  Nbd7 {[%clk 0:02:59]} 8. Qd2 {[%clk 0:02:58]}  c5 {[%clk 0:03:00]} 9. dxc5 {[%clk 0:02:53]}  Nxc5 {[%clk 0:02:57]} 10. Nd4 {[%clk 0:02:53]}  Bd7 {[%clk 0:02:51]} 11. Be2 {[%clk 0:02:52]}  Rc8 {[%clk 0:02:50]} 12. O-O {[%clk 0:02:51]}  a5 {[%clk 0:02:45]} 13. b3 {[%clk 0:02:47]}  Ne8 {[%clk 0:02:45]} 14. Rac1 {[%clk 0:02:46]}  Nc7 {[%clk 0:02:44]} 15. Rfd1 {[%clk 0:02:45]}  f5 {[%clk 0:02:32]} 16. exf5 {[%clk 0:02:42]}  gxf5 {[%clk 0:02:32]} 17. Bh6 {[%clk 0:02:41]}  Qe8 {[%clk 0:02:11]} 18. Bxg7 {[%clk 0:02:29]}  Kxg7 {[%clk 0:02:12]} 19. Re1 {[%clk 0:02:28]}  Qg6 {[%clk 0:02:03]} 20. Bd1 {[%clk 0:02:27]}  e5 {[%clk 0:02:02]} 21. Nc2 {[%clk 0:02:16]}  Rcd8 {[%clk 0:01:59]} 22. Ne3 {[%clk 0:02:15]}  Bc6 {[%clk 0:01:52]} 23. Bc2 {[%clk 0:02:13]}  N7e6 {[%clk 0:01:52]} 24. Kh1 {[%clk 0:02:08]}  Nd4 {[%clk 0:01:49]} 25. Bb1 {[%clk 0:02:01]}  Kh8 {[%clk 0:01:32]} 26. Qf2 {[%clk 0:01:51]}  Nce6 {[%clk 0:01:28]} 27. Ne2 {[%clk 0:01:44]}  Qg5 {[%clk 0:01:24]} 28. Nxd4 {[%clk 0:01:37]}  Nxd4 {[%clk 0:01:24]} 29. Rcd1 {[%clk 0:01:36]}  Ne6 {[%clk 0:01:04]} 30. Nd5 {[%clk 0:01:13]}  Nd4 {[%clk 0:00:55]} 31. Rxd4 {[%clk 0:01:10]}  exd4 {[%clk 0:00:56]} 32. Qxd4+ {[%clk 0:01:09]}  Qg7 {[%clk 0:00:57]} 33. Qxg7+ {[%clk 0:00:50]}  Kxg7 {[%clk 0:00:58]} 34. Nf4 {[%clk 0:00:51]}  Bd7 {[%clk 0:00:45]} 35. Rd1 {[%clk 0:00:50]}  Bc8 {[%clk 0:00:42]} 36. h4 {[%clk 0:00:44]}  Rfe8 {[%clk 0:00:41]} 37. Kh2 {[%clk 0:00:43]}  Kf6 {[%clk 0:00:38]} 38. Nd5+ {[%clk 0:00:41]}  Kg7 {[%clk 0:00:38]} 39. Nf4 {[%clk 0:00:39]}  Kf6 {[%clk 0:00:37]} 40. Kg3 {[%clk 0:00:40]}  Rg8+ {[%clk 0:00:37]} 41. Kf2 {[%clk 0:00:39]}  Rge8 {[%clk 0:00:36]} 42. Nd5+ {[%clk 0:00:39]}  Kg7 {[%clk 0:00:33]} 43. Nf4 {[%clk 0:00:39]}  Re5 {[%clk 0:00:29]} 44. Bd3 {[%clk 0:00:25]}  Bd7 {[%clk 0:00:19]} 45. Bc2 {[%clk 0:00:21]}  Bc6 {[%clk 0:00:19]} 46. Re1 {[%clk 0:00:19]}  Kf6 {[%clk 0:00:18]} 47. Nh5+ {[%clk 0:00:18]}  Kg6 {[%clk 0:00:18]} 48. g4 {[%clk 0:00:16]}  Rxe1 {[%clk 0:00:16]} 49. Bxf5+ {[%clk 0:00:16]}  Kf7 {[%clk 0:00:16]} 50. Kxe1 {[%clk 0:00:16]}  Bxf3 {[%clk 0:00:15]} 51. Kf2 {[%clk 0:00:17]}  Bd1 {[%clk 0:00:13]} 52. Ke1 {[%clk 0:00:17]}  Bf3 {[%clk 0:00:13]} 53. Kf2 {[%clk 0:00:17]}  Bd1 {[%clk 0:00:13]} 54. Ng3 {[%clk 0:00:17]}  a4 {[%clk 0:00:13]} 55. bxa4 {[%clk 0:00:16]}  h6 {[%clk 0:00:12]} 56. a5 {[%clk 0:00:14]}  Ra8 {[%clk 0:00:12]} 57. Ne4 {[%clk 0:00:12]}  Ke7 {[%clk 0:00:11]} 58. Nc3 {[%clk 0:00:09]}  Bxg4 {[%clk 0:00:05]} 59. Nd5+ {[%clk 0:00:09]}  Kf7 {[%clk 0:00:04]} 60. Bxg4 {[%clk 0:00:09]}  Rxa5 {[%clk 0:00:05]} 61. Ke3 {[%clk 0:00:09]}  Rxa2 {[%clk 0:00:05]} 62. Bc8 {[%clk 0:00:06]}  Rb2 {[%clk 0:00:05]} 63. h5 {[%clk 0:00:06]}  b5 {[%clk 0:00:05]} 64. cxb5 {[%clk 0:00:04]}  Rxb5 {[%clk 0:00:05]} 65. Nf4 {[%clk 0:00:04]}  Rg5 {[%clk 0:00:03]} 66. Bb7 {[%clk 0:00:04]}  Kf6 {[%clk 0:00:03]} 67. Bf3 {[%clk 0:00:04]}  Ke5 {[%clk 0:00:03]} 68. Nd3+ {[%clk 0:00:04]}  Kf6 {[%clk 0:00:03]} 69. Kf4 {[%clk 0:00:03]}  Rf5+ {[%clk 0:00:03]} 70. Kg4 {[%clk 0:00:03]}  Rg5+ {[%clk 0:00:04]} 71. Kh4 {[%clk 0:00:04]}  Ra5 {[%clk 0:00:04]} 72. Nf2 {[%clk 0:00:03]}  Ra4+ {[%clk 0:00:03]} 73. Kg3 {[%clk 0:00:04]}  Ra5 {[%clk 0:00:02]} 74. Ng4+ {[%clk 0:00:03]}  Kg5 {[%clk 0:00:02]} 75. Nf2 {[%clk 0:00:03]}  Ra3 {[%clk 0:00:01]} 76. Ne4+ {[%clk 0:00:03]} 1-0


[Site "https://www.chess.com"]

[Event "Titled Tuesday Blitz February 21 Early 2023"]
[White "Ehlvest, Jaan"]
[Black "Burke, John F"]
[WhiteFideId "4500016"]
[BlackFideId "2052970"]
[WhiteElo "2530"]
[BlackElo "2013"]
[Result "1-0"]
[Round "03"]
[TimeControl "180+2"]
[Date "2023.02.21"]
[WhiteClock "0:01:33"]
[BlackClock "0:02:14"]

1. e4 {[%clk 0:03:00]}  c5 {[%clk 0:02:59]} 2. Nf3 {[%clk 0:03:00]}  Nc6 {[%clk 0:02:59]} 3. d4 {[%clk 0:03:00]}  cxd4 {[%clk 0:03:00]} 4. Nxd4 {[%clk 0:03:01]}  e6 {[%clk 0:03:00]} 5. Bf4 {[%clk 0:02:58]}  Qb6 {[%clk 0:02:56]} 6. Nb5 {[%clk 0:02:56]}  e5 {[%clk 0:02:49]} 7. Be3 {[%clk 0:02:55]}  Qa5+ {[%clk 0:02:46]} 8. N1c3 {[%clk 0:02:55]}  Nf6 {[%clk 0:02:43]} 9. Bc4 {[%clk 0:02:47]}  a6 {[%clk 0:02:40]} 10. Nd6+ {[%clk 0:02:38]}  Bxd6 {[%clk 0:02:40]} 11. Qxd6 {[%clk 0:02:38]}  Nxe4 {[%clk 0:02:39]} 12. Qd5 {[%clk 0:02:36]}  Qxd5 {[%clk 0:02:35]} 13. Nxd5 {[%clk 0:02:36]}  O-O {[%clk 0:02:33]} 14. O-O-O {[%clk 0:02:32]}  d6 {[%clk 0:02:33]} 15. f3 {[%clk 0:02:29]}  Nc5 {[%clk 0:02:32]} 16. Nb6 {[%clk 0:02:26]}  Rb8 {[%clk 0:02:31]} 17. Rxd6 {[%clk 0:02:26]}  Ne6 {[%clk 0:02:27]} 18. c3 {[%clk 0:02:25]}  Rd8 {[%clk 0:02:23]} 19. Rhd1 {[%clk 0:02:23]}  Rxd6 {[%clk 0:02:23]} 20. Rxd6 {[%clk 0:02:23]}  Kf8 {[%clk 0:02:22]} 21. Bxe6 {[%clk 0:02:18]}  Bxe6 {[%clk 0:02:22]} 22. Rxe6 {[%clk 0:02:17]}  fxe6 {[%clk 0:02:21]} 23. Nd7+ {[%clk 0:02:17]}  Ke7 {[%clk 0:02:21]} 24. Nxb8 {[%clk 0:02:17]}  Nxb8 {[%clk 0:02:22]} 25. Bc5+ {[%clk 0:02:16]}  Kf6 {[%clk 0:02:22]} 26. Kd2 {[%clk 0:02:14]}  Nd7 {[%clk 0:02:22]} 27. Bd6 {[%clk 0:02:12]}  Kf5 {[%clk 0:02:22]} 28. Ke3 {[%clk 0:02:10]}  h5 {[%clk 0:02:21]} 29. c4 {[%clk 0:02:07]}  g5 {[%clk 0:02:20]} 30. b3 {[%clk 0:02:04]}  g4 {[%clk 0:02:21]} 31. a4 {[%clk 0:02:02]}  Nf6 {[%clk 0:02:17]} 32. b4 {[%clk 0:01:59]}  e4 {[%clk 0:02:17]} 33. f4 {[%clk 0:01:51]}  Ne8 {[%clk 0:02:16]} 34. Be5 {[%clk 0:01:50]}  Kg6 {[%clk 0:02:15]} 35. a5 {[%clk 0:01:49]}  Kf7 {[%clk 0:02:15]} 36. Kxe4 {[%clk 0:01:48]}  Ke7 {[%clk 0:02:16]} 37. b5 {[%clk 0:01:47]}  Kd7 {[%clk 0:02:15]} 38. f5 {[%clk 0:01:46]}  exf5+ {[%clk 0:02:15]} 39. Kxf5 {[%clk 0:01:46]}  Nd6+ {[%clk 0:02:15]} 40. Bxd6 {[%clk 0:01:43]}  Kxd6 {[%clk 0:02:16]} 41. bxa6 {[%clk 0:01:43]}  bxa6 {[%clk 0:02:15]} 42. Ke4 {[%clk 0:01:34]}  Kc5 {[%clk 0:02:13]} 43. Kd3 {[%clk 0:01:34]}  Kb4 {[%clk 0:02:13]} 44. Kd4 {[%clk 0:01:34]}  Kxa5 {[%clk 0:02:13]} 45. Kd5 {[%clk 0:01:34]}  Kb6 {[%clk 0:02:12]} 46. Kd6 {[%clk 0:01:34]}  a5 {[%clk 0:02:12]} 47. c5+ {[%clk 0:01:34]}  Kb7 {[%clk 0:02:12]} 48. Kd7 {[%clk 0:01:33]}  a4 {[%clk 0:02:12]} 49. c6+ {[%clk 0:01:34]}  Kb6 {[%clk 0:02:12]} 50. c7 {[%clk 0:01:34]}  a3 {[%clk 0:02:13]} 51. c8=Q {[%clk 0:01:34]}  a2 {[%clk 0:02:14]} 52. Qc1 {[%clk 0:01:33]} 1-0


[Site "https://www.chess.com"]

[Event "Titled Tuesday Blitz February 21 Early 2023"]
[White "Baghdasaryan, Vahe"]
[Black "Rose, Felix"]
[WhiteFideId "13303139"]
[BlackFideId "5105722"]
[WhiteElo "2257"]
[BlackElo "2091"]
[Result "1-0"]
[Round "03"]
[TimeControl "180+2"]
[Date "2023.02.21"]
[WhiteClock "0:00:09"]
[BlackClock "0:00:03"]

1. e4 {[%clk 0:02:19]}  e5 {[%clk 0:02:59]} 2. Nf3 {[%clk 0:02:12]}  Nc6 {[%clk 0:02:59]} 3. Bc4 {[%clk 0:02:10]}  Nf6 {[%clk 0:02:59]} 4. d3 {[%clk 0:02:09]}  Bc5 {[%clk 0:02:59]} 5. c3 {[%clk 0:02:08]}  d6 {[%clk 0:02:59]} 6. O-O {[%clk 0:02:07]}  a5 {[%clk 0:02:59]} 7. Nbd2 {[%clk 0:02:07]}  O-O {[%clk 0:02:57]} 8. h3 {[%clk 0:02:05]}  Be6 {[%clk 0:02:56]} 9. Re1 {[%clk 0:01:58]}  Re8 {[%clk 0:02:54]} 10. Bxe6 {[%clk 0:01:55]}  Rxe6 {[%clk 0:02:53]} 11. Nc4 {[%clk 0:01:55]}  h6 {[%clk 0:02:51]} 12. Be3 {[%clk 0:01:54]}  Ba7 {[%clk 0:02:47]} 13. Bxa7 {[%clk 0:01:53]}  Rxa7 {[%clk 0:02:47]} 14. Ne3 {[%clk 0:01:53]}  Ne7 {[%clk 0:02:46]} 15. Nh4 {[%clk 0:01:51]}  g6 {[%clk 0:02:36]} 16. Qf3 {[%clk 0:01:49]}  Nc8 {[%clk 0:02:24]} 17. Re2 {[%clk 0:01:33]}  Nh5 {[%clk 0:02:23]} 18. Nhf5 {[%clk 0:01:28]}  Nf4 {[%clk 0:02:11]} 19. Nxh6+ {[%clk 0:01:20]}  Kh7 {[%clk 0:02:01]} 20. Neg4 {[%clk 0:00:59]}  Nxe2+ {[%clk 0:01:44]} 21. Qxe2 {[%clk 0:01:00]}  Kg7 {[%clk 0:01:21]} 22. Rf1 {[%clk 0:00:55]}  Qg5 {[%clk 0:01:17]} 23. g3 {[%clk 0:00:37]}  Ne7 {[%clk 0:01:06]} 24. f4 {[%clk 0:00:30]}  exf4 {[%clk 0:00:53]} 25. Rxf4 {[%clk 0:00:29]}  f5 {[%clk 0:00:45]} 26. Qf2 {[%clk 0:00:19]}  c5 {[%clk 0:00:19]} 27. exf5 {[%clk 0:00:15]}  gxf5 {[%clk 0:00:18]} 28. Nxf5+ {[%clk 0:00:15]}  Nxf5 {[%clk 0:00:18]} 29. Rxf5 {[%clk 0:00:16]}  Qc1+ {[%clk 0:00:16]} 30. Kg2 {[%clk 0:00:16]}  b5 {[%clk 0:00:12]} 31. h4 {[%clk 0:00:10]}  Rae7 {[%clk 0:00:11]} 32. Kh3 {[%clk 0:00:09]}  Qh1+ {[%clk 0:00:10]} 33. Nh2 {[%clk 0:00:09]}  Re2 {[%clk 0:00:09]} 34. Rg5+ {[%clk 0:00:09]}  Kh7 {[%clk 0:00:05]} 35. Qf5+ {[%clk 0:00:09]}  Kh8 {[%clk 0:00:04]} 36. Qf6+ {[%clk 0:00:09]}  Kh7 {[%clk 0:00:03]} 37. Qg6+ {[%clk 0:00:09]} 1-0


[Site "https://www.chess.com"]

[Event "Titled Tuesday Blitz February 21 Early 2023"]
[White "lisjakzlatko1"]
[Black "Kokoszczynski, Jan"]
[BlackFideId "1174460"]
[WhiteElo "2162"]
[BlackElo "2247"]
[Result "0-1"]
[Round "03"]
[TimeControl "180+2"]
[Date "2023.02.21"]
[WhiteClock "0:00:03"]
[BlackClock "0:00:04"]

1. e4 {[%clk 0:03:00]}  e5 {[%clk 0:02:59]} 2. Nf3 {[%clk 0:02:59]}  Nc6 {[%clk 0:02:59]} 3. Bb5 {[%clk 0:02:58]}  a6 {[%clk 0:02:58]} 4. Bxc6 {[%clk 0:02:59]}  dxc6 {[%clk 0:02:58]} 5. O-O {[%clk 0:02:59]}  Bg4 {[%clk 0:02:39]} 6. h3 {[%clk 0:02:57]}  Bh5 {[%clk 0:02:39]} 7. d3 {[%clk 0:02:54]}  Bd6 {[%clk 0:02:23]} 8. Nbd2 {[%clk 0:02:50]}  f6 {[%clk 0:02:21]} 9. Nc4 {[%clk 0:02:48]}  Ne7 {[%clk 0:02:16]} 10. a4 {[%clk 0:02:42]}  Qd7 {[%clk 0:02:14]} 11. Be3 {[%clk 0:02:40]}  O-O {[%clk 0:02:08]} 12. a5 {[%clk 0:02:29]}  Rad8 {[%clk 0:02:07]} 13. g4 {[%clk 0:02:07]}  Bf7 {[%clk 0:02:07]} 14. Qe2 {[%clk 0:01:55]}  Rfe8 {[%clk 0:01:58]} 15. Kh2 {[%clk 0:01:46]}  Ng6 {[%clk 0:01:58]} 16. Nfd2 {[%clk 0:01:31]}  Bf8 {[%clk 0:01:45]} 17. Qf3 {[%clk 0:01:25]}  Be6 {[%clk 0:01:36]} 18. Rg1 {[%clk 0:01:22]}  Qf7 {[%clk 0:01:26]} 19. Qg3 {[%clk 0:01:21]}  Nf4 {[%clk 0:00:36]} 20. Bxf4 {[%clk 0:01:18]}  exf4 {[%clk 0:00:37]} 21. Qxf4 {[%clk 0:01:17]}  Bxc4 {[%clk 0:00:38]} 22. Nxc4 {[%clk 0:01:16]}  Rd4 {[%clk 0:00:38]} 23. Qg3 {[%clk 0:01:12]}  Rxc4 {[%clk 0:00:30]} 24. dxc4 {[%clk 0:01:10]}  Rxe4 {[%clk 0:00:31]} 25. Kh1 {[%clk 0:01:01]}  Bd6 {[%clk 0:00:31]} 26. Qb3 {[%clk 0:00:53]}  Qe6 {[%clk 0:00:13]} 27. Rad1 {[%clk 0:00:45]}  c5 {[%clk 0:00:10]} 28. Qxb7 {[%clk 0:00:42]}  Re2 {[%clk 0:00:08]} 29. Qd5 {[%clk 0:00:41]}  Qxd5+ {[%clk 0:00:08]} 30. cxd5 {[%clk 0:00:40]}  Rxc2 {[%clk 0:00:09]} 31. Rge1 {[%clk 0:00:36]}  Kf7 {[%clk 0:00:08]} 32. Kg1 {[%clk 0:00:35]}  Rxb2 {[%clk 0:00:07]} 33. Rb1 {[%clk 0:00:32]}  Rd2 {[%clk 0:00:07]} 34. Red1 {[%clk 0:00:32]}  Ra2 {[%clk 0:00:07]} 35. Ra1 {[%clk 0:00:31]}  Rc2 {[%clk 0:00:07]} 36. Rac1 {[%clk 0:00:28]}  Ra2 {[%clk 0:00:04]} 37. Ra1 {[%clk 0:00:27]}  Re2 {[%clk 0:00:05]} 38. Rd3 {[%clk 0:00:26]}  c4 {[%clk 0:00:04]} 39. Re3 {[%clk 0:00:22]}  Rc2 {[%clk 0:00:04]} 40. Kg2 {[%clk 0:00:19]}  Bc5 {[%clk 0:00:03]} 41. Rf3 {[%clk 0:00:18]}  Ke7 {[%clk 0:00:04]} 42. h4 {[%clk 0:00:17]}  Bd4 {[%clk 0:00:02]} 43. Rd1 {[%clk 0:00:15]}  Be5 {[%clk 0:00:01]} 44. g5 {[%clk 0:00:15]}  Kd6 {[%clk 0:00:01]} 45. Rf5 {[%clk 0:00:13]}  g6 {[%clk 0:00:01]} 46. Rf3 {[%clk 0:00:11]}  f5 {[%clk 0:00:01]} 47. h5 {[%clk 0:00:11]}  gxh5 {[%clk 0:00:01]} 48. Rh3 {[%clk 0:00:09]}  Re2 {[%clk 0:00:02]} 49. Rxh5 {[%clk 0:00:08]}  c3 {[%clk 0:00:03]} 50. Rxh7 {[%clk 0:00:06]}  c2 {[%clk 0:00:03]} 51. Rc1 {[%clk 0:00:06]}  Bf4 {[%clk 0:00:03]} 52. Rxc2 {[%clk 0:00:05]}  Rxc2 {[%clk 0:00:03]} 53. g6 {[%clk 0:00:04]}  Be5 {[%clk 0:00:04]} 54. g7 {[%clk 0:00:03]}  Rc4 {[%clk 0:00:04]} 0-1


[Site "https://www.chess.com"]